lending/lending_fUSD_20240219
["ID","MTS","AMOUNT","RATE_DAILY","PERIOD"]
[314437110,1708349432405,-1766.57722441,0.000387,2]
[314437111,1708349432422,-1130.28342085,0.000387,2]
[314437112,1708349432433,-527.33226,0.000387,2]
[314437113,1708349432492,-68.61211463,0.000387,2]
[314437114,1708349432523,-4749.07072687,0.000387,2]
[314437115,1708349432532,-177.53,0.00038726,2]
[314437116,1708349432543,-150.0,0.00038748,2]
[314437117,1708349432552,-155.0,0.00038799,4]
[314437118,1708349432563,-207.3409,0.000388,2]
[314437119,1708349432572,-628.00312441,0.000388,2]
[314437120,1708349432584,-181.72443109,0.00038899,4]
[314437121,1708349432594,-2950.77,0.000389,3]
[314437122,1708349432605,-2950.77,0.000389,3]
[314437124,1708349432615,-2950.77,0.000389,3]
[314437125,1708349432625,-2950.77,0.000389,3]
[314437126,1708349432635,-2950.77,0.000389,3]
[314437127,1708349432644,-2950.77,0.000389,3]
[314437128,1708349432655,-2950.77,0.000389,3]
[314437129,1708349432664,-2950.77,0.000389,3]
[314437130,1708349432673,-2950.77,0.000389,3]
[314437131,1708349432683,-2950.77,0.000389,3]
[314437132,1708349432693,-2950.77,0.000389,3]
[314437133,1708349432703,-2950.77,0.000389,3]
[314437134,1708349432713,-2950.77,0.000389,3]
[314437135,1708349432722,-2950.77,0.000389,3]
[314437136,1708349432731,-2950.77,0.000389,3]
[314437137,1708349432740,-2950.77,0.000389,3]
[314437138,1708349432750,-2950.77,0.000389,3]
[314437139,1708349432760,-2950.77,0.000389,3]
[314437140,1708349432770,-2950.77,0.000389,3]
[314437141,1708349432779,-2950.77,0.000389,3]
[314437142,1708349432789,-152.3,0.000389,3]
[314437143,1708349432798,-152.3,0.000389,3]
[314437144,1708349432808,-152.3,0.000389,3]
[314437145,1708349432817,-152.3,0.000389,3]
[314437146,1708349432826,-152.3,0.000389,3]
[314437147,1708349432836,-152.3,0.000389,3]
[314437148,1708349432845,-2286.37089918,0.000389,2]
[314437149,1708349432854,-521.0,0.00038904,14]
[314437150,1708349432864,-20000.0,0.00038931,2]
[314437151,1708349432874,-1494.84538394,0.00038968,2]
[314437152,1708349432883,-155.0,0.00038969,4]
[314437153,1708349432893,-1151.56023571,0.00038969,2]
[314437154,1708349432903,-2000.0,0.0003897,2]
[314437155,1708349432913,-200.0,0.0003897,2]
[314437156,1708349432923,-2000.0,0.0003897,2]
[314437157,1708349432932,-200.0,0.0003897,2]
[314437158,1708349432941,-326.48649685,0.00038977,8]
[314437159,1708349432951,-800.0,0.00039,2]
[314437160,1708349432960,-150.1,0.00039,2]
[314437161,1708349432969,-450.0,0.00039,22]
[314437162,1708349432981,-995.36384,0.00039,14]
[314437163,1708349432991,-216.05927404,0.00039,60]
[314437164,1708349433001,-900.0,0.00039,4]
[314437165,1708349433010,-300.0,0.00039,4]
[314437166,1708349433020,-558.85588848,0.00039,2]
[314437167,1708349433030,-1192.0,0.00039,7]
[314437168,1708349433039,-235.530415,0.00039009,5]
[314437169,1708349433049,-679.91600434,0.00039076,2]
[314437170,1708349433058,-194.79515954,0.00039076,2]
[314437171,1708349433068,-554.85022029,0.00039076,2]
[314437172,1708349433087,-152.06641792,0.00039078,12]
[314437173,1708349433099,-5580.30140575,0.00039078,12]
[314437174,1708349433109,-153.25408226,0.00039078,3]
[314437175,1708349433119,-546.24602004,0.00039078,2]
[314437176,1708349433129,-2071.742448,0.00039078,2]
[314437177,1708349433138,-436.58972474,0.00039078,2]
[314437178,1708349433147,-1976.7935,0.00039078,2]
[314437179,1708349433157,-5000.0,0.00039078,3]
[314437180,1708349433167,-176.95525197,0.0003909,2]
[314437181,1708349433177,-189.23,0.000391,2]
[314437182,1708349433186,-144268.078784,0.00039158,5]
[314437183,1708349433196,-504938.275744,0.00039168,5]
[314437184,1708349433206,-158.90707712,0.00039176,4]
[314437185,1708349433216,-909.07266442,0.00039176,5]
[314437186,1708349433225,-25163.48506375,0.00039177,4]
[314437187,1708349433235,-250.0,0.00039177,2]
[314437188,1708349433246,-521.0,0.00039178,14]
[314437189,1708349433256,-344.61627408,0.00039178,2]
[314437190,1708349433266,-748.85064591,0.00039178,2]
[314437191,1708349433276,-935326.83514169,0.00039178,2]
[314437192,1708349433296,-2769.47617146,0.00039178,2]
[314437193,1708349438094,-882.3603,0.000388,2]
[314437194,1708349438104,-136.37974243,0.00038983,10]
[314437195,1708349440062,-1279.78823902,0.00038535,2]
[314437196,1708349440072,-1158.92068312,0.00038548,2]
[314437197,1708349440082,-1279.78823902,0.00038649,2]
[314437198,1708349440092,-1158.92068312,0.00038816,2]
[314437199,1708349440102,-863.62025757,0.00038983,10]
[314437200,1708349440112,-2976.5673469,0.00039178,2]
[314437201,1708349440361,-326.7364091,0.00039078,2]
[314437210,1708349441531,-53.66456096,0.00039078,2]
[314437211,1708349441542,-124451.28551388,0.00039178,2]
[314437215,1708349443340,-319.436173,0.0003452,2]
[314437216,1708349443350,-479.15426,0.00034794,2]
[314437217,1708349443359,-638.872347,0.00034931,2]
[314437218,1708349443369,-798.590434,0.00035068,2]
[314437219,1708349443378,-179.0,0.00039178,2]
[314437220,1708349443387,-21895.90077893,0.00039178,2]
[314437221,1708349443399,-11955.20439353,0.00039178,2]
[314437222,1708349443411,-1321.86465,0.00039178,2]
[314437223,1708349443423,-13833.184442,0.00039178,2]
[314437378,1708350328050,10000.0,0.00025,10]
[314437379,1708350547105,-627.26855164,0.00024914,2]
[314437380,1708350547125,-200.0,0.00024915,2]
[314437381,1708350547146,-550.0,0.00025,3]
[314437382,1708350547165,-600.0,0.00027,3]
[314437383,1708350547185,-625.51774007,0.00029,3]
[314437384,1708350553103,-24.48225993,0.00029,3]
[314437385,1708350553125,-700.0,0.00031,3]
[314437396,1708350633941,-334.14411535,0.00032596,4]
[314437397,1708350633952,-4723.24989248,0.00032697,2]
[314437398,1708350633961,-157.39481,0.00032799,2]
[314437399,1708350633971,-150.0,0.00032898,2]
[314437400,1708350633980,-502.91990999,0.00032898,2]
[314437401,1708350634007,-497.07009001,0.00032898,2]
[314437402,1708350634017,-1487.52087666,0.00032899,2]
[314437403,1708350634031,-893.52833333,0.00032899,2]
[314437404,1708350634043,-853.15156266,0.00032899,2]
[314437405,1708350634054,-741.8811006,0.00032899,2]
[314437406,1708350634072,-1763.73235746,0.00032899,2]
[314437407,1708350634081,-2954.18034254,0.000329,2]
[314437443,1708350638319,-3724.0356087,0.000329,2]
[314437444,1708350638434,-1317.41,0.000329,2]
[314437445,1708350638550,-7234.37404876,0.000329,2]
[314437446,1708350638560,-21.27705114,0.000329,2]
[314437454,1708350640875,-329.60556228,0.00032597,2]
[314437455,1708350640884,-2017.72294886,0.000329,2]
[314437456,1708350640894,-128.00254462,0.000329,2]
[314437457,1708350641005,-371.99745541,0.000329,2]
[314437458,1708350641014,-750.0,0.00033,3]
[314437459,1708350641024,-206.0,0.00033714,2]
[314437460,1708350641033,-150.0,0.00034548,10]
[314437461,1708350641043,-1200.0,0.00035,36]
[314437462,1708350641052,-439.72,0.00035154,2]
[314437463,1708350641061,-1118.026607,0.00035342,2]
[314437464,1708350641070,-923.2,0.00036071,2]
[314437465,1708350641080,-155.12,0.00036685,2]
[314437466,1708350641090,-1926.0,0.00037,10]
[314437467,1708350641099,-895.95,0.00037038,2]
[314437468,1708350641108,-814.51,0.00037042,2]
[314437469,1708350641117,-401.31,0.00037256,2]
[314437470,1708350641126,-439.72,0.00037417,2]
[314437471,1708350641135,-624.29,0.00037419,2]
[314437472,1708350641144,-197.01,0.00037465,2]
[314437473,1708350641154,-206.0,0.00037469,10]
[314437474,1708350641163,-1169.96797914,0.00037614,2]
[314437475,1708350641172,-640.0,0.00037714,2]
[314437476,1708350641182,-647.08,0.00037902,2]
[314437477,1708350641193,-154.62,0.00037991,2]
[314437478,1708350641203,-712.11779661,0.00037998,4]
[314437479,1708350641212,-181.72443109,0.00037999,4]
[314437480,1708350641222,-15354.013195,0.00038,2]
[314437481,1708350641231,-53772.26994539,0.00038,4]
[314437482,1708350641240,-360.0,0.00038038,2]
[314437483,1708350641249,-177.53,0.000382,2]
[314437484,1708350641258,-491.68,0.00038356,15]
[314437485,1708350641267,-150.0,0.00038356,2]
[314437486,1708350641276,-814.51,0.00038412,2]
[314437487,1708350641285,-225.0,0.00038512,2]
[314437488,1708350641294,-155.12,0.0003852,2]
[314437489,1708350641303,-436.26,0.0003863,2]
[314437490,1708350641312,-154.22,0.0003863,2]
[314437491,1708350641321,-500.0,0.000387,3]
[314437492,1708350641332,-182.28825017,0.00038748,2]
[314437493,1708350641341,-587.68306389,0.0003877,2]
[314437494,1708350641350,-2057.73380928,0.0003877,2]
[314437495,1708350641360,-988.37831,0.0003879,2]
[314437496,1708350641370,-1169.96797914,0.000388,2]
[314437497,1708350641379,-1423.0494,0.0003887,2]
[314437498,1708350641389,-2449.39,0.000389,3]
[314437499,1708350641398,-2449.39,0.000389,3]
[314437500,1708350641407,-2449.39,0.000389,3]
[314437501,1708350641417,-2449.39,0.000389,3]
[314437502,1708350641426,-2449.39,0.000389,3]
[314437503,1708350641436,-2449.39,0.000389,3]
[314437504,1708350641445,-2449.39,0.000389,3]
[314437505,1708350641455,-2449.39,0.000389,3]
[314437506,1708350641464,-2449.39,0.000389,3]
[314437507,1708350641473,-2449.39,0.000389,3]
[314437508,1708350641482,-2449.39,0.000389,3]
[314437509,1708350641491,-2449.39,0.000389,3]
[314437510,1708350641501,-2449.39,0.000389,3]
[314437511,1708350641510,-2449.39,0.000389,3]
[314437512,1708350641519,-2449.39,0.000389,3]
[314437513,1708350641529,-2449.39,0.000389,3]
[314437514,1708350641538,-2449.39,0.000389,3]
[314437515,1708350641547,-2449.39,0.000389,3]
[314437516,1708350641556,-2449.39,0.000389,3]
[314437517,1708350641566,-2449.39,0.000389,3]
[314437518,1708350641576,-152.3,0.000389,3]
[314437519,1708350641585,-152.3,0.000389,3]
[314437520,1708350641595,-152.3,0.000389,3]
[314437521,1708350641604,-152.3,0.000389,3]
[314437522,1708350641613,-152.3,0.000389,3]
[314437523,1708350641622,-152.3,0.000389,3]
[314437524,1708350641632,-1158.92068312,0.00038971,2]
[314437525,1708350641641,-1000.0,0.00038999,10]
[314437526,1708350641650,-293.83784716,0.00038999,8]
[314437527,1708350641659,-273.08819507,0.00038999,8]
[314437528,1708350641669,-3000.0,0.00039,39]
[314437529,1708350641678,-900.0,0.00039,4]
[314437530,1708350641687,-155.0,0.00039,2]
[314437531,1708350641697,-51682.11281308,0.00039,2]
[314437532,1708350641706,-1500.425,0.00039058,2]
[314437533,1708350641716,-158.90707712,0.00039076,4]
[314437534,1708350641725,-307.29923186,0.00039077,9]
[314437535,1708350641735,-194.79515954,0.0003909,2]
[314437536,1708350641744,-679.91600434,0.0003909,2]
[314437537,1708350641754,-554.85022029,0.0003909,2]
[314437538,1708350641764,-234.23,0.000391,2]
[314437539,1708350641773,-197.01,0.00039109,2]
[314437540,1708350641783,-800.0,0.00039124,5]
[314437541,1708350641793,-153.25408226,0.00039129,3]
[314437542,1708350641803,-85366.9818843,0.00039168,5]
[314437543,1708350641812,-2800.5381788,0.00039172,2]
[314437544,1708350641822,-24509.54480849,0.00039177,4]
[314437545,1708350641833,-2000.0,0.00039178,2]
[314437546,1708350641842,-200.0,0.00039178,2]
[314437547,1708350641852,-2000.0,0.00039178,2]
[314437548,1708350641863,-200.0,0.00039178,2]
[314437549,1708350641872,-2000.0,0.00039178,2]
[314437550,1708350641882,-200.0,0.00039178,2]
[314437552,1708350641891,-357874.1,0.00039178,2]
[314437553,1708350641900,-85366.9818843,0.0003918,5]
[314437554,1708350641909,-3489.70066019,0.0003919,5]
[314437555,1708350641941,-992.65139184,0.0003919,5]
[314437567,1708350643391,-34126.67973674,0.0003919,5]
[314437578,1708350670407,33806.66974007,0.00023,2]
[314437579,1708350670429,483.77968142,0.00023,2]
[314437580,1708350670451,135107.39591885,0.00023,2]
[314437581,1708350670475,1437555.9725732,0.00023,2]
[314437582,1708350681428,8815.20379045,9e-05,2]
[314437583,1708350687247,1675.81015316,0.00025,30]
[314437584,1708350694733,567.52535751,0.000225,2]
[314437585,1708350697050,1377.45009982,0.00011,2]
[314437586,1708350708131,287.17550693,0.0002,2]
[314437587,1708350713976,14902.83955765,6.94e-05,2]
[314437588,1708350755475,221.89607654,0.0002211,2]
[314437589,1708350774033,437.59199043,0.0002,2]
[314437590,1708350793606,3274.98427137,0.0001305,2]
[314437591,1708350819131,3687.14810852,0.0002,2]
[314437592,1708350825728,6160.80721672,0.000142,2]
[314437593,1708350826481,6653.0,0.0002,2]
[314437595,1708350828623,1637.15911062,0.000181,2]
[314437596,1708350830398,101991.9783267,0.00023,2]
[314437597,1708350845818,200.0,0.0001634,2]
[314437598,1708350847422,10357.36264851,0.0002,2]
[314437600,1708350856832,951.24530988,0.0002,2]
[314437601,1708350861480,468.75639936,0.00018,2]
[314437602,1708350864239,421.51746623,0.00022,2]
[314437604,1708350909465,-2769.32084671,0.000263,2]
[314437605,1708350909504,-3911.21991616,0.0002705,2]
[314437606,1708350909522,-2769.32084671,0.0002705,2]
[314437607,1708350909561,-3650.63987005,0.0002705,2]
[314437610,1708351026835,-2769.32084671,0.0002705,2]
[314437612,1708351430496,-170.23,0.00029695,2]
[314437613,1708351430521,-158.21014016,0.00029799,2]
[314437614,1708351430545,-5895.53505182,0.000299,2]
[314437617,1708351486808,150.0,0.0002722,120]
[314437619,1708351637144,-401.58668259,0.00029899,2]
[314437620,1708351637166,-7.28602451,0.000299,2]
[314437621,1708351756316,-321.15411565,0.000299,2]
[314437622,1708351756337,-159.53980533,0.0003,30]
[314437623,1708351756359,-206.0,0.00030714,2]
[314437624,1708351756379,-155.0,0.00032599,4]
[314437625,1708351756398,-274.1193,0.000326,2]
[314437626,1708351756418,-400.0,0.00032699,3]
[314437627,1708351756437,-14313.0,0.000327,2]
[314437628,1708351756459,-158.21014013,0.000328,2]
[314437629,1708351761768,1157.63695052,0.000329,2]
[314437630,1708351763104,-2642.324,0.000329,2]
[314437641,1708351831619,-0.09545793,0.00032735,2]
[314437642,1708351831722,-200.3084424,0.00032735,2]
[314437643,1708351831733,-245.24475532,0.000329,2]
[314437644,1708351831748,-143.10766322,0.00034897,4]
[314437668,1708351837462,-79.99604933,0.00034897,4]
[314437669,1708351837474,-206.0,0.00034898,10]
[314437670,1708351837486,-42.0020176,0.00035143,4]
[314437671,1708351837623,-1079.066,0.00035143,4]
[314437672,1708351837762,-23.62074538,0.00035143,4]
[314437673,1708351837842,-782.52983112,0.00035143,4]
[314437845,1708351840937,-7.12433812,0.00035143,4]
[314437847,1708351840946,-320.0,0.00035144,3]
[314437849,1708351840955,-445.5,0.00035283,2]
[314437851,1708351840964,-158.21014013,0.00036,2]
[314437853,1708351840973,-177.53,0.00036296,2]
[314437855,1708351840982,-155.0,0.00036857,4]
[314437857,1708351840991,-343.27,0.00036858,2]
[314437859,1708351841000,-373.86,0.00036951,2]
[314437861,1708351841010,-908.5,0.00036959,2]
[314437863,1708351841019,-215.53,0.00036963,2]
[314437865,1708351841028,-150.0,0.00037004,2]
[314437867,1708351841037,-512.0,0.00037019,2]
[314437869,1708351841047,-151.0,0.00037038,4]
[314437871,1708351841056,-250.0,0.00037103,2]
[314437873,1708351841065,-161.87,0.00037139,2]
[314437875,1708351841074,-19.86359871,0.00037166,2]
[314437879,1708351841096,-468.13640129,0.00037166,2]
[314437881,1708351841105,-643.79,0.00037175,2]
[314437883,1708351841114,-539.23,0.00037191,2]
[314437885,1708351841123,-8717.63628451,0.00037194,2]
[314437887,1708351841139,-15162.36371549,0.00037194,2]
[314437890,1708351841148,-334.42,0.00037199,2]
[314437892,1708351841157,-1000.0,0.000373,2]
[314437894,1708351841167,-155.7,0.00037393,2]
[314437895,1708351841177,-1315.81990384,0.000374,5]
[314437897,1708351841187,-445.5,0.00037547,2]
[314437899,1708351841196,-155.7,0.0003788,2]
[314437901,1708351841206,-155.0,0.00037898,4]
[314437904,1708351841216,-155.19799574,0.00037899,4]
[314437906,1708351841225,-200.0,0.00037987,3]
[314437908,1708351841234,-4000.0,0.00038,8]
[314437910,1708351841243,-521.0,0.00038,2]
[314437912,1708351841253,-155.7,0.0003819,2]
[314437913,1708351841263,-155.0,0.0003829,2]
[314437916,1708351841272,-450.7,0.00038356,15]
[314437918,1708351841282,-150.0,0.00038356,2]
[314437920,1708351841290,-155.7,0.00038367,2]
[314437922,1708351841299,-1000.0,0.000384,8]
[314437924,1708351841308,-1007.0,0.000385,7]
[314437926,1708351841317,-1017.0,0.000385,7]
[314437928,1708351841328,-227.25,0.00038503,2]
[314437929,1708351841337,-643.79,0.0003855,2]
[314437932,1708351841347,-164.07750768,0.00038552,10]
[314437933,1708351841356,-215.53,0.00038607,2]
[314437935,1708351841366,-521.0,0.0003863,14]
[314437938,1708351841375,-7256.0517,0.000387,2]
[314437940,1708351841384,-152.0,0.000387,3]
[314437942,1708351841394,-823.64859,0.0003879,2]
[314437944,1708351841403,-155.24001604,0.00038798,2]
[314437946,1708351841413,-1000.0,0.000388,2]
[314437947,1708351841423,-156.383,0.000388,2]
[314437950,1708351841433,-49349.4651,0.000388,2]
[314437952,1708351841444,-6538.8519,0.000388,2]
[314437954,1708351841453,-2080.59751827,0.000388,2]
[314437956,1708351841462,-591.71506996,0.000388,2]
[314437958,1708351841471,-168.02,0.00038807,2]
[314437960,1708351841480,-155.7,0.00038854,2]
[314437962,1708351841489,-119592.305071,0.000389,2]
[314437964,1708351841498,-2227.08,0.000389,3]
[314437966,1708351841507,-2227.08,0.000389,3]
[314437968,1708351841516,-2227.08,0.000389,3]
[314437970,1708351841526,-2227.08,0.000389,3]
[314437972,1708351841536,-2227.08,0.000389,3]
[314437974,1708351841545,-2227.08,0.000389,3]
[314437976,1708351841555,-2227.08,0.000389,3]
[314437978,1708351841564,-2227.08,0.000389,3]
[314437980,1708351841574,-2227.08,0.000389,3]
[314437982,1708351841586,-2227.08,0.000389,3]
[314437984,1708351841594,-2227.08,0.000389,3]
[314437986,1708351841604,-2227.08,0.000389,3]
[314437988,1708351841613,-2227.08,0.000389,3]
[314437990,1708351841622,-2227.08,0.000389,3]
[314437992,1708351841631,-2227.08,0.000389,3]
[314437994,1708351841640,-2227.08,0.000389,3]
[314437996,1708351841649,-2227.08,0.000389,3]
[314437998,1708351841658,-2227.08,0.000389,3]
[314438000,1708351841667,-2227.08,0.000389,3]
[314438002,1708351841676,-2227.08,0.000389,3]
[314438004,1708351841685,-4648.42626935,0.000389,2]
[314438005,1708351841694,-4648.42626925,0.000389,2]
[314438007,1708351841704,-152.31,0.000389,3]
[314438010,1708351841713,-152.31,0.000389,3]
[314438012,1708351841723,-152.31,0.000389,3]
[314438013,1708351841732,-152.31,0.000389,3]
[314438016,1708351841742,-152.31,0.000389,3]
[314438018,1708351841751,-521.0,0.00038904,14]
[314438020,1708351841760,-4648.42626925,0.00038908,2]
[314438021,1708351841769,-4648.42626925,0.00038963,2]
[314438023,1708351841778,-200.0,0.00038968,5]
[314438026,1708351841787,-1000.0,0.00038999,10]
[314438027,1708351841796,-1211.14962369,0.00038999,8]
[314438029,1708351841806,-900.0,0.00039,4]
[314438032,1708351841815,-50483.09784078,0.00039,30]
[314438034,1708351841824,-150.0,0.00039,2]
[314438036,1708351841835,-1000.0,0.00039,8]
[314438037,1708351841844,-154.0,0.00039,2]
[314438039,1708351841853,-4648.42626925,0.00039017,2]
[314438041,1708351841862,-161.87,0.00039071,2]
[314438044,1708351841872,-4648.42626925,0.00039071,2]
[314438046,1708351841881,-206.0,0.00039082,18]
[314438047,1708351841890,-10169.98891863,0.00039099,2]
[314438050,1708351841899,-1976.7935,0.000391,2]
[314438051,1708351841909,-500.0,0.000391,2]
[314438053,1708351841918,-690.3443,0.000391,2]
[314438055,1708351841927,-199.1,0.000391,2]
[314438057,1708351841936,-4161.51129711,0.00039105,2]
[314438059,1708351841945,-25046.25357532,0.00039105,2]
[314438061,1708351841955,-386.36262329,0.00039116,9]
[314438062,1708351841964,-800.0,0.00039124,5]
[314438063,1708351841973,-4648.42626925,0.00039125,2]
[314438064,1708351841982,-898.57660999,0.00039137,2]
[314438065,1708351841991,-20000.0,0.00039139,2]
[314438066,1708351842001,-150.01,0.00039177,2]
[314438067,1708351842010,-3319.32799788,0.00039177,2]
[314438068,1708351842020,-521.0,0.00039178,14]
[314438069,1708351842030,-4648.42626925,0.00039179,2]
[314438070,1708351842039,-70510.0522231,0.0003918,5]
[314438072,1708351842048,-108976.8312754,0.00039181,2]
[314438074,1708351842058,-5226.9490549,0.00039181,2]
[314438075,1708351842068,-12459.5549586,0.00039181,2]
[314438077,1708351842077,-153.25408226,0.00039187,3]
[314438079,1708351842087,-334.14411535,0.00039189,4]
[314438081,1708351842096,-2000.0,0.0003919,2]
[314438082,1708351842105,-200.0,0.0003919,2]
[314438084,1708351842115,-2000.0,0.0003919,2]
[314438086,1708351842124,-200.0,0.0003919,2]
[314438088,1708351842133,-70510.0522231,0.0003919,5]
[314438090,1708351842142,-391.91066709,0.00039199,30]
[314438092,1708351842151,-5115.27628854,0.00039199,12]
[314438094,1708351842160,-102224.77419857,0.000392,3]
[314438105,1708351842665,-3104.73604241,0.000392,3]
[314438106,1708351842777,-84888.77070117,0.000392,3]
[314438107,1708351842786,-158.21014013,0.000392,2]
[314438108,1708351842796,-1351.9167865,0.000392,2]
[314438109,1708351842805,-10950.4265223,0.000392,2]
[314438110,1708351842814,-436.58972474,0.000392,2]
[314438111,1708351842823,-546.24602004,0.000392,2]
[314438112,1708351842834,-176.95525197,0.00039208,2]
[314438113,1708351842844,-4648.42626925,0.00039234,2]
[314438114,1708351842853,-2080.5975182,0.00039256,2]
[314438115,1708351842862,-591.71506989,0.00039256,2]
[314438116,1708351842872,-538.63,0.0003926,2]
[314438117,1708351842881,-282040.208892,0.0003928,5]
[314438118,1708351842890,-158.37755034,0.00039287,2]
[314438120,1708351842899,-4648.42626925,0.00039288,2]
[314438121,1708351842909,-211530.156669,0.0003929,5]
[314438122,1708351842918,-151.0,0.0003929,14]
[314438123,1708351842927,-151.0,0.0003929,14]
[314438124,1708351842937,-612.436033,0.0003929,14]
[314438125,1708351842946,-612.436033,0.0003929,14]
[314438126,1708351842955,-151.0,0.0003929,14]
[314438127,1708351842965,-172.767593,0.0003929,14]
[314438128,1708351842974,-172.767593,0.0003929,14]
[314438129,1708351842983,-151.0,0.0003929,14]
[314438130,1708351842991,-151.0,0.0003929,14]
[314438131,1708351843001,-3366.634663,0.0003929,14]
[314438132,1708351843010,-191.41203,0.0003929,14]
[314438133,1708351843019,-3366.634663,0.0003929,14]
[314438134,1708351843028,-191.41203,0.0003929,14]
[314438135,1708351843037,-151.0,0.0003929,14]
[314438136,1708351843046,-151.0,0.0003929,14]
[314438137,1708351843055,-151.0,0.0003929,14]
[314438138,1708351843064,-250.0,0.00039299,2]
[314438139,1708351843073,-198.73198156,0.000393,3]
[314438140,1708351843084,-758720.69911149,0.000393,2]
[314438141,1708351843122,-2981.61801652,0.000393,2]
[314438162,1708351845563,-150.01,0.00039177,2]
[314438165,1708351845573,-371.61,0.00039177,2]
[314438172,1708352321129,550.0,0.00025,3]
[314438173,1708352322193,600.0,0.00027,3]
[314438202,1708352778848,-206.0,0.00027714,2]
[314438203,1708352778868,-3513.0,0.000286,2]
[314438205,1708352793147,-901.8341,0.000286,2]
[314438206,1708352793167,-38.79843406,0.000287,2]
[314438208,1708352853294,-676.08583992,0.000287,2]
[314438209,1708352853314,-150.9385784,0.00028714,2]
[314438210,1708352853336,-150.9385784,0.00028714,2]
[314438211,1708352853356,-2153.06270227,0.00028899,2]
[314438212,1708352853378,-152.08249695,0.000289,2]
[314438213,1708352853398,-150.9385784,0.00028999,2]
[314438214,1708352853418,-650.0,0.00029,3]
[314438215,1708352853443,-152.08249691,0.00029741,2]
[314438216,1708352853464,-152.08249691,0.00030582,2]
[314438217,1708352853484,-152.08249691,0.00031422,2]
[314438218,1708352853505,-152.08249691,0.00032263,2]
[314438219,1708352853527,-206.0,0.00032326,10]
[314438220,1708352853550,-2057.0,0.000328,2]
[314438221,1708352853569,-444.42327665,0.000329,2]
[314438222,1708352853589,-152.08249691,0.00033104,2]
[314438223,1708352853609,-152.08249691,0.00033945,2]
[314438224,1708352853629,-511.28,0.00034608,2]
[314438225,1708352853650,-152.08249691,0.00034785,2]
[314438226,1708352853669,-210.0,0.0003519,2]
[314438227,1708352853689,-152.08249691,0.00035626,2]
[314438228,1708352853709,-185.0,0.00036,2]
[314438229,1708352853729,-150.0,0.00036099,3]
[314438230,1708352853749,-210.0,0.000361,2]
[314438231,1708352853769,-3587.21,0.000361,2]
[314438232,1708352853789,-715.35,0.000361,2]
[314438233,1708352853810,-144.12095667,0.00036196,2]
[314438243,1708353031856,-206.0,0.00035939,2]
[314438244,1708353031866,-178.3878097,0.00036099,4]
[314438245,1708353031974,-1064.25258234,0.00036099,4]
[314438246,1708353031985,-956.23752668,0.00036099,4]
[314438247,1708353031996,-636.00966495,0.00036099,4]
[314438254,1708353037627,-57.90299519,0.00036099,4]
[314438255,1708353037638,-1480.57713281,0.000361,2]
[314438258,1708353038023,-0.19993636,0.000361,2]
[314438266,1708353038079,-291.45533083,0.000361,2]
[314438269,1708353038091,-246.27904333,0.00036196,2]
[314438272,1708353038102,-852.05411788,0.000362,2]
[314438273,1708353038118,-647.94588212,0.000362,2]
[314438274,1708353038127,-150.0,0.00036304,2]
[314438275,1708353038136,-449.35,0.00036321,2]
[314438276,1708353038146,-152.08249691,0.00036467,2]
[314438278,1708353038155,-165.37,0.00036772,2]
[314438280,1708353038164,-511.28,0.00036872,2]
[314438282,1708353038173,-741.13,0.00036999,2]